[Event "ONJK-A 2019"]
[Site "Borne"]
[Date "2019.08.09"]
[Round "8.6"]
[White "Merkon, Oseb"]
[Black "Ypma, Jord"]
[Result "0-1"]
[ECO "A29"]
[WhiteElo "2013"]
[BlackElo "1968"]
[Annotator "NA"]
[PlyCount "176"]
[EventDate "2019.08.05"]
[EventType "swiss"]
[EventCountry "NED"]
[SourceTitle "playchess.com"]
[Source "ChessBase"]
[SourceQuality "1"]
[TimeControl "5400+30"]

1. c4 {[%emt 0:00:00]} Nf6 {[%emt 0:00:00]} 2. Nc3 e5 {[%emt 0:00:15]} 3. g3 {[%emt 0:00:08]} d5 {[%emt 0:00:18]} 4. cxd5 {[%emt 0:00:08]} Nxd5 {[%emt 0:00:08]} 5. Bg2 {[%emt 0:00:06]} Nb6 {[%emt 0:00:15]} 6. Nf3 {[%emt 0:02:04]} Nc6 {[%emt 0:00:21]} 7. a3 {[%emt 0:00:56]} Be7 {[%emt 0:02:55]} 8. O-O {[%emt 0:02:00]} O-O {[%emt 0:00:52]} 9. e3 {[%emt 0:11:21]} Bg4 {[%emt 0:10:29]} 10. h3 {[%emt 0:01:50]} Bxf3 {[%emt 0:06:32]} 11. Bxf3 {[%emt 0:02:32]} f5 {[%emt 0:04:29]} 12. Bxc6 {[%emt 0:09:32]} bxc6 {[%emt 0:00:21]} 13. d4 {[%emt 0:01:46]} e4 {[%emt 0:01:17]} 14. f3 {[%emt 0:10:26]} Qd6 {[%emt 0:06:55]} 15. Kg2 {[%emt 0:08:08]} Nd5 {[%emt 0:05:40]} 16. Nxd5 {[%emt 0:06:24]} cxd5 {[%emt 0:02:19]} 17. Bd2 {[%emt 0:02:31]} Qe6 {[%emt 0:11:55]} 18. Rc1 {[%emt 0:05:44]} Bd6 {[%emt 0:01:17]} 19. f4 {[%emt 0:03:26]} Kh8 {[%emt 0:00:43]} 20. Ba5 {[%emt 0:05:39]} Qf7 {[%emt 0:02:57]} 21. Rc6 {[%emt 0:02:01]} Rg8 {[%emt 0:04:13]} 22. Qc2 {[%emt 0:04:54]} Rac8 {[%emt 0:00:43]} 23. Rc1 {[%emt 0:00:51]} Qh5 {[%emt 0:00:59]} 24. Qd1 {[%emt 0:00:58]} Qf7 {[%emt 0:06:31]} 25. Qc2 {[%emt 0:01:07]} Qh5 {[%emt 0:01:37]} 26. Qd1 {[%emt 0:03:05]} Qf7 {[%emt 0:01:46]} 27. h4 {[%emt 0:03:53]} h6 {[%emt 0:01:44]} 28. Qc2 {[%emt 0:00:43]} Qh5 {[%emt 0:00:21]} 29. Qd1 {[%emt 0:00:03]} Qf7 {[%emt 0:00:17]} 30. Qe2 {[%emt 0:04:01]} Rge8 {[%emt 0:01:56]} 31. a4 {[%emt 0:01:30]} Re6 {[%emt 0:04:33]} 32. b4 {[%emt 0:02:14]} Rg6 {[%emt 0:07:27]} 33. b5 {[%emt 0:00:58]} Kh7 {[%emt 0:06:04]} 34. Ra6 {[%emt 0:01:47]} Ra8 {[%emt 0:01:15]} 35. Rac6 {[%emt 0:00:37]} Rc8 {[%emt 0:00:05]} 36. Be1 {[%emt 0:01:34]} Ra8 {[%emt 0:01:40]} 37. a5 {[%emt 0:00:52]} Qe7 {[%emt 0:02:10]} 38. Kh2 {[%emt 0:01:35]} Rg4 {[%emt 0:00:58]} 39. Ra6 {[%emt 0:01:07]} Qe8 {[%emt 0:02:41]} 40. Rac6 {[%emt 0:00:44]} Qe7 {[%emt 0:00:13]} 41. a6 {[%emt 0:00:22]} Rc8 {[%emt 0:01:29]} 42. Ba5 {[%emt 0:00:47]} g5 {[%emt 0:00:13]} 43. hxg5 {[%emt 0:00:14]} hxg5 {[%emt 0:00:10]} 44. Kg2 {[%emt 0:00:45]} gxf4 {[%emt 0:00:09]} 45. Rh1+ {[%emt 0:00:02]} Kg7 {[%emt 0:00:23]} 46. exf4 {[%emt 0:00:09]} Bxf4 {[%emt 0:00:22]} 47. Rh3 {[%emt 0:00:50]} Qa3 {[%emt 0:00:50]} 48. Bc3 {[%emt 0:00:26]} Rh8 {[%emt 0:00:28]} 49. Rxh8 {[%emt 0:00:36]} Kxh8 {[%emt 0:00:21]} 50. Kf1 {[%emt 0:01:00]} Bxg3 {[%emt 0:00:44]} 51. Be1 {[%emt 0:00:19]} Qa1 {[%emt 0:01:09]} 52. Rh6+ {[%emt 0:00:42]} Kg7 {[%emt 0:00:14]} 53. Rh1 {[%emt 0:00:01]} Bxe1 {[%emt 0:00:34]} 54. Qxe1 {[%emt 0:00:06]} Qxd4 {[%emt 0:00:08]} 55. Qf2 {[%emt 0:00:31]} Qd1+ {[%emt 0:00:12]} 56. Qe1 {[%emt 0:00:07]} Rf4+ {[%emt 0:00:15]} 57. Kg2 {[%emt 0:00:09]} Qf3+ {[%emt 0:00:33]} 58. Kh2 {[%emt 0:00:03]} Qf2+ {[%emt 0:00:45]} 59. Qxf2 {[%emt 0:00:15]} Rxf2+ {[%emt 0:00:04]} 60. Kg3 {[%emt 0:00:07]} Rf3+ {[%emt 0:00:33]} 61. Kg2 {[%emt 0:00:33]} Rb3 {[%emt 0:00:03]} 62. Rc1 {[%emt 0:00:05]} Rxb5 {[%emt 0:00:04]} 63. Rxc7+ {[%emt 0:00:05]} Kf6 {[%emt 0:00:11]} 64. Rxa7 {[%emt 0:00:07]} Ra5 {[%emt 0:00:10]} 65. Ra8 {[%emt 0:00:01]} Ke5 {[%emt 0:00:09]} 66. a7 {[%emt 0:00:07]} Kf4 {[%emt 0:00:04]} 67. Kf2 {[%emt 0:01:36]} d4 {[%emt 0:00:10]} 68. Rd8 {[%emt 0:00:14]} Rxa7 {[%emt 0:00:06]} 69. Rxd4 {[%emt 0:00:03]} Ra2+ {[%emt 0:00:07]} 70. Kf1 {[%emt 0:00:09]} Ke3 {[%emt 0:00:12]} 71. Rb4 {[%emt 0:00:06]} Ra3 {[%emt 0:00:14]} 72. Rb2 {[%emt 0:00:13]} Ra1+ {[%emt 0:00:31]} 73. Kg2 {[%emt 0:00:03]} Rd1 {[%emt 0:00:16]} 74. Rb3+ {[%emt 0:00:08]} Rd3 {[%emt 0:00:17]} 75. Rb1 {[%emt 0:00:15]} f4 {[%emt 0:01:00]} 76. Re1+ {[%emt 0:00:10]} Kd4 {[%emt 0:00:05]} 77. Ra1 {[%emt 0:00:15]} Rc3 {[%emt 0:01:08]} 78. Rd1+ {[%emt 0:00:16]} Ke3 {[%emt 0:00:17]} 79. Re1+ {[%emt 0:00:09]} Kd3 {[%emt 0:00:04]} 80. Rd1+ {[%emt 0:00:18]} Ke2 {[%emt 0:00:11]} 81. Ra1 {[%emt 0:00:08]} Rg3+ {[%emt 0:00:33]} 82. Kh2 {[%emt 0:00:03]} e3 {[%emt 0:00:29]} 83. Ra4 {[%emt 0:00:36]} Kf3 {[%emt 0:00:08]} 84. Ra3 {[%emt 0:00:04]} Rg7 {[%emt 0:00:08]} 85. Rb3 {[%emt 0:00:08]} Kf2 {[%emt 0:00:05]} 86. Rb2+ {[%emt 0:00:14]} e2 {[%emt 0:00:05]} 87. Kh3 {[%emt 0:00:19]} Kf1 {[%emt 0:00:04]} 88. Rb3 {[%emt 0:00:23]} Rg3+ {[%emt 0:00:45]} 0-1

[Event "ONJK-A 2019"]
[Site "Borne"]
[Date "2019.08.09"]
[Round "8.7"]
[White "Albers, Sasa"]
[Black "Klaren, Duncan"]
[Result "0-1"]
[ECO "B50"]
[WhiteElo "1889"]
[BlackElo "1896"]
[Annotator "NA"]
[PlyCount "82"]
[EventDate "2019.08.05"]
[EventType "swiss"]
[EventCountry "NED"]
[SourceTitle "playchess.com"]
[Source "ChessBase"]
[SourceQuality "1"]
[TimeControl "5400+30"]

1. e4 {[%emt 0:00:00]} c5 {[%emt 0:00:00]} 2. Nf3 {[%emt 0:00:00]} d6 {[%emt 0:00:00]} 3. c3 {[%emt 0:00:00]} Nf6 {[%emt 0:00:00]} 4. Be2 {[%emt 0:00:00]} Nbd7 {[%emt 0:00:01]} 5. Qc2 {[%emt 0:00:00]} Qc7 {[%emt 0:00:05]} 6. O-O {[%emt 0:00:00]} b6 {[%emt 0:00:07]} 7. d4 {[%emt 0:01:38]} cxd4 {[%emt 0:00:13]} 8. Nxd4 {[%emt 0:00:02]} Bb7 {[%emt 0:01:22]} 9. f3 {[%emt 0:00:26]} g6 {[%emt 0:00:39]} 10. Be3 {[%emt 0:00:07]} Bg7 {[%emt 0:00:06]} 11. c4 {[%emt 0:01:10]} a6 {[%emt 0:01:26]} 12. Nc3 {[%emt 0:00:07]} O-O {[%emt 0:00:15]} 13. Rac1 {[%emt 0:00:37]} Ne5 {[%emt 0:02:17]} 14. b3 {[%emt 0:00:15]} Rac8 {[%emt 0:00:31]} 15. Rfd1 {[%emt 0:00:59]} Rfd8 {[%emt 0:03:43]} 16. Qb1 {[%emt 0:22:47]} Qd7 {[%emt 0:03:21]} 17. Nd5 {[%emt 0:10:16]} Nxd5 {[%emt 0:03:39]} 18. cxd5 {[%emt 0:00:11]} b5 {[%emt 0:01:37]} 19. h3 {[%emt 0:04:59]} Qe8 {[%emt 0:02:01]} 20. f4 {[%emt 0:05:48]} Nd7 {[%emt 0:00:07]} 21. Nc6 {[%emt 0:00:12]} Bxc6 {[%emt 0:00:04]} 22. dxc6 {[%emt 0:00:07]} Nc5 {[%emt 0:00:16]} 23. a4 {[%emt 0:08:36]} Qxc6 {[%emt 0:02:18]} 24. axb5 {[%emt 0:05:15]} axb5 {[%emt 0:00:45]} 25. Bf3 {[%emt 0:03:05]} Qa6 {[%emt 0:01:02]} 26. e5 {[%emt 0:03:37]} Qa3 {[%emt 0:01:59]} 27. exd6 {[%emt 0:02:21]} Rxd6 {[%emt 0:01:31]} 28. Bf2 {[%emt 0:04:48]} Qb4 {[%emt 0:03:09]} 29. Rxd6 {[%emt 0:08:14]} exd6 {[%emt 0:00:06]} 30. Bd5 {[%emt 0:03:46]} Bd4 {[%emt 0:01:38]} 31. Qc2 {[%emt 0:02:08]} Re8 {[%emt 0:00:56]} 32. Rf1 {[%emt 0:03:01]} Re1 {[%emt 0:03:51]} 33. Bf3 {[%emt 0:01:55]} Bxf2+ {[%emt 0:00:50]} 34. Qxf2 {[%emt 0:00:15]} Nd3 {[%emt 0:01:06]} 35. Rxe1 {[%emt 0:02:54]} Nxf2 {[%emt 0:00:07]} 36. Kxf2 {[%emt 0:00:11]} Qxb3 {[%emt 0:00:24]} 37. Rd1 {[%emt 0:00:06]} Qc2+ {[%emt 0:00:40]} 38. Kf1 {[%emt 0:00:32]} b4 {[%emt 0:00:13]} 39. Rxd6 {[%emt 0:00:32]} b3 {[%emt 0:00:56]} 40. Rd8+ {[%emt 0:01:39]} Kg7 {[%emt 0:00:06]} 41. Re8 {[%emt 0:00:45]} b2 {[%emt 0:00:24]} 0-1

[Event "ONJK-A 2019"]
[Site "Borne"]
[Date "2019.08.09"]
[Round "8.8"]
[White "Vitharana, Annelies"]
[Black "Van Roon, Sjoerd"]
[Result "0-1"]
[ECO "C45"]
[WhiteElo "1768"]
[BlackElo "2072"]
[Annotator "NA"]
[PlyCount "92"]
[EventDate "2019.08.05"]
[EventType "swiss"]
[EventCountry "NED"]
[SourceTitle "playchess.com"]
[Source "ChessBase"]
[SourceQuality "1"]
[TimeControl "5400+30"]

1. e4 {[%emt 0:00:00]} e5 {[%emt 0:00:00]} 2. Nf3 {[%emt 0:00:00]} Nc6 {[%emt 0:00:00]} 3. d4 {[%emt 0:00:00]} exd4 {[%emt 0:00:00]} 4. Nxd4 {[%emt 0:00:00]} Nf6 {[%emt 0:00:05]} 5. Nxc6 {[%emt 0:00:11]} bxc6 {[%emt 0:00:03]} 6. e5 {[%emt 0:00:12]} Qe7 {[%emt 0:00:06]} 7. Qe2 {[%emt 0:00:10]} Nd5 {[%emt 0:00:06]} 8. c4 {[%emt 0:00:12]} Ba6 {[%emt 0:00:20]} 9. b3 {[%emt 0:00:46]} O-O-O {[%emt 0:02:56]} 10. Qb2 {[%emt 0:05:30]} Nb6 {[%emt 0:04:23]} 11. Be2 {[%emt 0:02:14]} Re8 {[%emt 0:04:16]} 12. Bf4 {[%emt 0:08:13]} g5 {[%emt 0:03:32]} 13. Bg3 {[%emt 0:05:57]} Bg7 {[%emt 0:02:28]} 14. O-O {[%emt 0:06:31]} Bxe5 {[%emt 0:07:36]} 15. Bxe5 {[%emt 0:05:33]} Qxe5 {[%emt 0:01:14]} 16. Nc3 {[%emt 0:02:05]} c5 {[%emt 0:19:42]} 17. Bh5 {[%emt 0:06:39]} Re6 {[%emt 0:04:10]} 18. Bf3 {[%emt 0:05:59]} h5 {[%emt 0:05:16]} 19. Qd2 {[%emt 0:04:10]} Qd4 {[%emt 0:06:11]} 20. Qc2 {[%emt 0:04:12]} g4 {[%emt 0:02:13]} 21. Be4 {[%emt 0:01:44]} Rhe8 {[%emt 0:05:22]} 22. Rad1 {[%emt 0:02:18]} Qf6 {[%emt 0:00:19]} 23. a4 {[%emt 0:05:32]} Bb7 {[%emt 0:03:49]} 24. Bxb7+ {[%emt 0:03:18]} Kxb7 {[%emt 0:00:10]} 25. a5 {[%emt 0:00:27]} h4 {[%emt 0:04:02]} 26. axb6 {[%emt 0:03:51]} h3 {[%emt 0:01:14]} 27. Nd5 {[%emt 0:06:22]} Qh6 {[%emt 0:00:53]} 28. g3 {[%emt 0:05:06]} axb6 {[%emt 0:01:13]} 29. Ne3 {[%emt 0:01:20]} Qf6 {[%emt 0:09:24]} 30. Rxd7 {[%emt 0:07:58]} Qf3 {[%emt 0:00:08]} 31. Qd2 {[%emt 0:01:11]} Kc8 {[%emt 0:08:21]} 32. Ra1 {[%emt 0:02:39]} Re5 {[%emt 0:01:14]} 33. Ra7 {[%emt 0:02:25]} Qc6 {[%emt 0:01:42]} 34. Rdxc7+ {[%emt 0:03:42]} Qxc7 {[%emt 0:00:08]} 35. Rxc7+ {[%emt 0:00:11]} Kxc7 {[%emt 0:00:04]} 36. Kf1 {[%emt 0:00:38]} f5 {[%emt 0:00:25]} 37. Nd5+ {[%emt 0:00:43]} Kb7 {[%emt 0:00:08]} 38. Nc3 {[%emt 0:00:26]} Kc6 {[%emt 0:00:43]} 39. Nb5 {[%emt 0:00:18]} R8e6 {[%emt 0:00:18]} 40. Nc3 {[%emt 0:00:44]} Rd6 {[%emt 0:01:10]} 41. Qf4 {[%emt 0:00:30]} Rde6 {[%emt 0:00:10]} 42. f3 {[%emt 0:00:31]} Re3 {[%emt 0:00:49]} 43. fxg4 {[%emt 0:00:29]} fxg4 {[%emt 0:00:44]} 44. Qxg4 {[%emt 0:00:31]} Rf6+ {[%emt 0:00:09]} 45. Qf4 {[%emt 0:00:24]} Rxf4+ {[%emt 0:00:10]} 46. gxf4 {[%emt 0:00:21]} Rxc3 {[%emt 0:00:04]} 0-1

[Event "ONJK-A 2019"]
[Site "Borne"]
[Date "2019.08.09"]
[Round "8.9"]
[White "Butzen, Robin"]
[Black "Godde, Matthias"]
[Result "0-1"]
[ECO "E99"]
[WhiteElo "1967"]
[BlackElo "1989"]
[Annotator "NA"]
[PlyCount "94"]
[EventDate "2019.08.05"]
[EventType "swiss"]
[EventCountry "NED"]
[SourceTitle "playchess.com"]
[Source "ChessBase"]
[SourceQuality "1"]
[TimeControl "5400+30"]

1. d4 {[%emt 0:00:25]} Nf6 {[%emt 0:00:00]} 2. c4 {[%emt 0:00:04]} g6 {[%emt 0:00:00]} 3. Nc3 {[%emt 0:00:02]} Bg7 {[%emt 0:00:00]} 4. e4 {[%emt 0:00:04]} d6 {[%emt 0:00:00]} 5. Be2 {[%emt 0:00:03]} O-O {[%emt 0:00:01]} 6. Nf3 {[%emt 0:00:02]} e5 {[%emt 0:00:25]} 7. O-O {[%emt 0:00:05]} Nc6 {[%emt 0:00:27]} 8. d5 {[%emt 0:00:05]} Ne7 {[%emt 0:00:01]} 9. Ne1 {[%emt 0:00:06]} Nd7 {[%emt 0:00:15]} 10. Be3 {[%emt 0:00:05]} f5 {[%emt 0:00:10]} 11. f3 {[%emt 0:00:01]} f4 {[%emt 0:00:08]} 12. Bf2 {[%emt 0:00:03]} g5 {[%emt 0:00:11]} 13. Nb5 {[%emt 0:00:03]} b6 {[%emt 0:08:17]} 14. b4 {[%emt 0:01:05]} Ng6 {[%emt 0:04:20]} 15. Nd3 {[%emt 0:04:47]} Rf7 {[%emt 0:02:04]} 16. c5 {[%emt 0:03:13]} Bf8 {[%emt 0:03:52]} 17. cxd6 {[%emt 0:17:02]} cxd6 {[%emt 0:04:45]} 18. Rc1 {[%emt 0:18:12]} Nf6 {[%emt 0:01:49]} 19. Rc3 {[%emt 0:00:58]} g4 {[%emt 0:03:40]} 20. Qc2 {[%emt 0:01:57]} g3 {[%emt 0:03:50]} 21. hxg3 {[%emt 0:04:53]} fxg3 {[%emt 0:03:13]} 22. Bxg3 {[%emt 0:00:23]} Nh5 {[%emt 0:00:32]} 23. Bh2 {[%emt 0:00:31]} Nh4 {[%emt 0:41:49]} 24. f4 {[%emt 0:16:25]} Nxg2 {[%emt 0:10:38]} 25. Bxh5 {[%emt 0:18:12]} Rg7 {[%emt 0:00:01]} 26. Kh1 {[%emt 0:02:19]} Ne3 {[%emt 0:01:52]} 27. Qf2 {[%emt 0:00:29]} Nxf1 {[%emt 0:00:49]} 28. Qxf1 {[%emt 0:00:04]} Qh4 {[%emt 0:01:09]} 29. Bf3 {[%emt 0:00:06]} Ba6 {[%emt 0:03:18]} 30. a4 {[%emt 0:01:20]} exf4 {[%emt 0:00:24]} 31. Nxf4 {[%emt 0:01:19]} Rc8 {[%emt 0:01:40]} 32. Rxc8 {[%emt 0:03:19]} Bxc8 {[%emt 0:00:01]} 33. Nd4 {[%emt 0:03:36]} Be7 {[%emt 0:01:13]} 34. Nfe6 {[%emt 0:01:26]} Bxe6 {[%emt 0:01:30]} 35. Nxe6 {[%emt 0:00:06]} Rf7 {[%emt 0:00:39]} 36. e5 {[%emt 0:01:30]} dxe5 {[%emt 0:01:04]} 37. Kg1 {[%emt 0:02:59]} Bf6 {[%emt 0:02:54]} 38. Qc1 {[%emt 0:00:51]} h6 {[%emt 0:00:58]} 39. Qc8+ {[%emt 0:00:36]} Kh7 {[%emt 0:00:02]} 40. Qc2+ {[%emt 0:00:05]} Kg8 {[%emt 0:01:26]} 41. Be4 {[%emt 0:01:00]} Qe1+ {[%emt 0:00:29]} 42. Kg2 {[%emt 0:00:13]} Bg7 {[%emt 0:00:30]} 43. Bg3 {[%emt 0:00:51]} Qxb4 {[%emt 0:00:31]} 44. Bg6 {[%emt 0:00:30]} Rf6 {[%emt 0:00:29]} 45. Bxe5 {[%emt 0:00:27]} Qg4+ {[%emt 0:00:22]} 46. Kh2 {[%emt 0:00:23]} Rxg6 {[%emt 0:00:33]} 47. Nxg7 {[%emt 0:00:34]} Qh4# 0-1

[Event "ONJK-A 2019"]
[Site "Borne"]
[Date "2019.08.09"]
[Round "8.10"]
[White "De Vries, Tobias"]
[Black "Akulova, Alicia"]
[Result "1/2-1/2"]
[ECO "A46"]
[WhiteElo "1868"]
[BlackElo "1702"]
[Annotator "NA"]
[PlyCount "44"]
[EventDate "2019.08.05"]
[EventType "swiss"]
[EventCountry "NED"]
[SourceTitle "playchess.com"]
[Source "ChessBase"]
[SourceQuality "1"]
[TimeControl "5400+30"]

1. Nf3 {[%emt 0:00:00]} d5 {[%emt 0:00:00]} 2. g3 {[%emt 0:00:17]} Nf6 {[%emt 0:00:00]} 3. Bg2 {[%emt 0:00:09]} e6 {[%emt 0:00:09]} 4. O-O {[%emt 0:00:09]} Be7 {[%emt 0:00:24]} 5. d4 {[%emt 0:00:04]} b5 {[%emt 0:00:44]} 6. b3 {[%emt 0:02:26]} Bb7 {[%emt 0:08:54]} 7. c4 {[%emt 0:02:07]} bxc4 {[%emt 0:01:41]} 8. bxc4 {[%emt 0:00:09]} dxc4 {[%emt 0:09:21]} 9. Qa4+ {[%emt 0:03:23]} Nfd7 {[%emt 0:09:09]} 10. Na3 {[%emt 0:08:13]} O-O {[%emt 0:05:15]} 11. Nxc4 {[%emt 0:00:53]} c5 {[%emt 0:07:36]} 12. Nfe5 {[%emt 0:18:02]} Bxg2 {[%emt 0:00:48]} 13. Kxg2 {[%emt 0:00:33]} cxd4 {[%emt 0:01:33]} 14. Nxd7 {[%emt 0:06:51]} Qxd7 {[%emt 0:01:32]} 15. Qxd7 {[%emt 0:00:17]} Nxd7 {[%emt 0:00:05]} 16. Rb1 {[%emt 0:05:05]} Rac8 {[%emt 0:02:35]} 17. Rb7 {[%emt 0:03:28]} Rfd8 {[%emt 0:08:35]} 18. Ba3 {[%emt 0:04:25]} Bxa3 {[%emt 0:03:04]} 19. Nxa3 {[%emt 0:00:07]} a6 {[%emt 0:03:55]} 20. Rfb1 {[%emt 0:03:17]} Nc5 {[%emt 0:13:18]} 21. R7b6 {[%emt 0:01:23]} Kf8 {[%emt 0:07:41]} 22. Rc1 {[%emt 0:05:06]} Ke7 {[%emt 0:01:56]} 1/2-1/2

[Event "ONJK-A 2019"]
[Site "Borne"]
[Date "2019.08.09"]
[Round "8.11"]
[White "Vleming, Stefan"]
[Black "Nies, Levi"]
[Result "1-0"]
[ECO "E12"]
[WhiteElo "1760"]
[BlackElo "1516"]
[Annotator "NA"]
[PlyCount "87"]
[EventDate "2019.08.05"]
[EventType "swiss"]
[EventCountry "NED"]
[SourceTitle "playchess.com"]
[Source "ChessBase"]
[SourceQuality "1"]
[TimeControl "5400+30"]

1. d4 {[%emt 0:00:00]} d5 {[%emt 0:00:00]} 2. c4 {[%emt 0:00:04]} e6 {[%emt 0:00:00]} 3. Nc3 {[%emt 0:00:08]} Nf6 {[%emt 0:00:00]} 4. Bg5 {[%emt 0:00:06]} Be7 {[%emt 0:00:04]} 5. e3 {[%emt 0:00:09]} b6 {[%emt 0:00:05]} 6. Nf3 {[%emt 0:00:13]} Bb7 {[%emt 0:00:10]} 7. cxd5 {[%emt 0:00:38]} Nxd5 {[%emt 0:00:11]} 8. Bxe7 {[%emt 0:00:48]} Nxe7 {[%emt 0:00:08]} 9. Bd3 {[%emt 0:00:21]} Nbc6 {[%emt 0:02:38]} 10. O-O {[%emt 0:01:57]} O-O {[%emt 0:00:19]} 11. Rc1 {[%emt 0:09:11]} Ng6 {[%emt 0:02:48]} 12. a3 {[%emt 0:06:20]} Qe7 {[%emt 0:02:02]} 13. b4 {[%emt 0:04:42]} Rad8 {[%emt 0:03:27]} 14. Qe2 {[%emt 0:03:38]} e5 {[%emt 0:09:18]} 15. Bxg6 {[%emt 0:08:39]} exd4 {[%emt 0:00:41]} 16. Bxh7+ {[%emt 0:02:05]} Kxh7 {[%emt 0:00:09]} 17. exd4 {[%emt 0:02:16]} Qxe2 {[%emt 0:00:59]} 18. Nxe2 {[%emt 0:02:48]} Rfe8 {[%emt 0:02:15]} 19. Rfe1 {[%emt 0:04:07]} Rd7 {[%emt 0:09:38]} 20. b5 {[%emt 0:09:38]} Na5 {[%emt 0:04:02]} 21. Ng5+ {[%emt 0:11:00]} Kh6 {[%emt 0:04:30]} 22. h4 {[%emt 0:07:10]} Nb3 {[%emt 0:01:22]} 23. Rb1 {[%emt 0:03:43]} Nxd4 {[%emt 0:01:14]} 24. Nxf7+ {[%emt 0:02:27]} Rxf7 {[%emt 0:01:21]} 25. Nxd4 {[%emt 0:00:23]} Rxe1+ {[%emt 0:05:33]} 26. Rxe1 {[%emt 0:00:29]} Rf4 {[%emt 0:00:46]} 27. Rd1 {[%emt 0:05:56]} Bc8 {[%emt 0:09:38]} 28. g3 {[%emt 0:01:06]} Rf7 {[%emt 0:00:56]} 29. Nc6 {[%emt 0:02:29]} a6 {[%emt 0:00:18]} 30. a4 {[%emt 0:00:24]} Kh5 {[%emt 0:05:49]} 31. Ne5 {[%emt 0:01:29]} Rf6 {[%emt 0:04:41]} 32. Rc1 {[%emt 0:01:46]} Re6 {[%emt 0:04:16]} 33. Nd3 {[%emt 0:03:55]} Re7 {[%emt 0:02:15]} 34. Nf4+ {[%emt 0:00:41]} Kg4 {[%emt 0:00:51]} 35. Nd5 {[%emt 0:00:46]} Re4 {[%emt 0:01:39]} 36. Rxc7 {[%emt 0:00:52]} Bf5 {[%emt 0:03:30]} 37. Rxg7+ {[%emt 0:00:26]} Kf3 {[%emt 0:00:36]} 38. Rf7 {[%emt 0:00:37]} Re1+ {[%emt 0:00:18]} 39. Kh2 {[%emt 0:00:06]} Ke4 {[%emt 0:01:48]} 40. Re7+ {[%emt 0:00:08]} Kxd5 {[%emt 0:00:06]} 41. Rxe1 {[%emt 0:00:04]} axb5 42. axb5 {[%emt 0:00:07]} Bd3 {[%emt 0:00:08]} 43. Rd1 {[%emt 0:00:09]} Kc4 {[%emt 0:00:03]} 44. Rxd3 {Kd5} 1-0

[Event "ONJK-A 2019"]
[Site "Borne"]
[Date "2019.08.09"]
[Round "8.12"]
[White "Hofstra, Tijmen"]
[Black "Lettko, Michael"]
[Result "1/2-1/2"]
[ECO "B11"]
[WhiteElo "1732"]
[BlackElo "1386"]
[Annotator "NA"]
[PlyCount "43"]
[EventDate "2019.08.05"]
[EventType "swiss"]
[EventCountry "NED"]
[SourceTitle "playchess.com"]
[Source "ChessBase"]
[SourceQuality "1"]
[TimeControl "5400+30"]

1. e4 {[%emt 0:00:00]} c6 {[%emt 0:00:00]} 2. Nc3 {[%emt 0:00:07]} d5 {[%emt 0:00:00]} 3. Nf3 {[%emt 0:00:08]} Bg4 {[%emt 0:00:05]} 4. exd5 {[%emt 0:02:41]} cxd5 {[%emt 0:00:38]} 5. Bb5+ {[%emt 0:00:17]} Nc6 {[%emt 0:00:53]} 6. h3 {[%emt 0:01:09]} Bxf3 {[%emt 0:01:30]} 7. Qxf3 {[%emt 0:00:08]} e6 {[%emt 0:01:05]} 8. d3 {[%emt 0:00:22]} Nge7 {[%emt 0:02:06]} 9. Bg5 {[%emt 0:01:24]} Qc7 {[%emt 0:02:09]} 10. O-O {[%emt 0:00:32]} a6 {[%emt 0:01:54]} 11. Bxc6+ {[%emt 0:02:11]} Nxc6 {[%emt 0:03:04]} 12. Rfe1 {[%emt 0:00:28]} Nd4 {[%emt 0:04:39]} 13. Qxd5 {[%emt 0:00:14]} Nxc2 {[%emt 0:02:26]} 14. Rxe6+ {[%emt 0:05:58]} fxe6 {[%emt 0:00:13]} 15. Qxe6+ {[%emt 0:00:03]} Be7 {[%emt 0:01:49]} 16. Nd5 {[%emt 0:00:07]} Qd7 {[%emt 0:00:48]} 17. Qe2 {[%emt 0:01:18]} Nxa1 {[%emt 0:19:01]} 18. Nxe7 {[%emt 0:00:48]} Kf7 {[%emt 0:02:14]} 19. Qf3+ {[%emt 0:00:47]} Ke8 {[%emt 0:06:34]} 20. Qe4 {[%emt 0:00:56]} Kf7 {[%emt 0:00:28]} 21. Qf3+ {[%emt 0:00:14]} Ke8 {[%emt 0:00:12]} 22. Qe4 {[%emt 0:00:10]} 1/2-1/2

[Event "ONJK-A 2019"]
[Site "Borne"]
[Date "2019.08.10"]
[Round "9.2"]
[White "Noordenbos, Daan"]
[Black "Hilwerda, Jonas"]
[Result "1/2-1/2"]
[ECO "C54"]
[WhiteElo "2042"]
[BlackElo "2263"]
[Annotator "NA"]
[PlyCount "76"]
[EventDate "2019.08.05"]
[EventType "swiss"]
[EventCountry "NED"]
[SourceTitle "playchess.com"]
[Source "ChessBase"]
[SourceQuality "1"]
[TimeControl "5400+30"]

1. e4 {[%emt 0:00:00]} e5 {[%emt 0:00:00]} 2. Nf3 {[%emt 0:00:00]} Nc6 {[%emt 0:00:00]} 3. Bc4 {[%emt 0:00:00]} Nf6 {[%emt 0:00:39]} 4. d3 {[%emt 0:00:13]} Bc5 {[%emt 0:00:18]} 5. Bb3 {[%emt 0:01:26]} d6 {[%emt 0:01:55]} 6. c3 {[%emt 0:00:47]} O-O {[%emt 0:01:18]} 7. Nbd2 {[%emt 0:03:15]} a6 {[%emt 0:01:00]} 8. Nf1 {[%emt 0:00:35]} Ng4 {[%emt 0:04:19]} 9. Ne3 {[%emt 0:01:13]} Nxe3 {[%emt 0:01:01]} 10. Bxe3 {[%emt 0:00:07]} Bxe3 {[%emt 0:00:58]} 11. fxe3 {[%emt 0:00:08]} Qf6 {[%emt 0:07:44]} 12. Qe2 {[%emt 0:03:14]} Qh6 {[%emt 0:01:49]} 13. O-O {[%emt 0:03:43]} Kh8 {[%emt 0:12:45]} 14. Nd2 {[%emt 0:08:29]} f6 {[%emt 0:01:47]} 15. Rf2 {[%emt 0:02:32]} g6 {[%emt 0:08:19]} 16. Raf1 {[%emt 0:08:35]} Qg5 {[%emt 0:17:03]} 17. d4 {[%emt 0:08:34]} Bg4 {[%emt 0:12:26]} 18. Qd3 {[%emt 0:00:56]} Rad8 {[%emt 0:01:26]} 19. Bd5 {[%emt 0:06:22]} Bd7 {[%emt 0:04:17]} 20. Kh1 {[%emt 0:06:26]} Rb8 {[%emt 0:01:39]} 21. Nf3 {[%emt 0:02:34]} Qh6 {[%emt 0:05:16]} 22. Ng1 {[%emt 0:02:01]} Qg7 {[%emt 0:01:26]} 23. Ne2 {[%emt 0:03:16]} Ne7 {[%emt 0:01:09]} 24. Bb3 {[%emt 0:01:35]} Rbd8 {[%emt 0:00:10]} 25. Qd2 {[%emt 0:03:54]} Bc6 {[%emt 0:01:33]} 26. Ng3 {[%emt 0:01:22]} h5 {[%emt 0:01:00]} 27. h4 {[%emt 0:02:57]} Bb5 {[%emt 0:00:58]} 28. Rd1 {[%emt 0:01:13]} Bd7 {[%emt 0:00:40]} 29. Kh2 {[%emt 0:03:11]} Bg4 {[%emt 0:00:24]} 30. Rdf1 {[%emt 0:00:07]} f5 {[%emt 0:00:49]} 31. exf5 {[%emt 0:07:00]} gxf5 {[%emt 0:01:22]} 32. Kg1 {[%emt 0:00:21]} Qh6 {[%emt 0:04:53]} 33. Bc2 {[%emt 0:02:00]} Qf6 {[%emt 0:04:13]} 34. Ne4 Qh6 {[%emt 0:00:08]} 35. Ng3 Qg7 {[%emt 0:00:05]} 36. Bb3 Qf6 {[%emt 0:00:12]} 37. Bd1 Qg7 {[%emt 0:00:09]} 38. Bb3 Qf6 1/2-1/2